[Event "Live Chess"]
[Site "Chess.com"]
[Date "2023.05.21"]
[Round "-"]
[White "Tiltador"]
[Black "Anirudh_23"]
[Result "0-1"]
[WhiteElo "846"]
[BlackElo "1890"]
[TimeControl "300"]
[EndTime "5:57:23 PDT"]
[Termination "Anirudh_23 won by checkmate"]

1. e4 {[%clk 0:04:57.9]} 1... e6 {[%clk 0:04:58.6]} 2. Nf3 {[%clk 0:04:56.9]}
2... d5 {[%clk 0:04:57.5]} 3. Bb5+ {[%clk 0:04:55]} 3... c6 {[%clk 0:04:56.5]}
4. Be2 {[%clk 0:04:52.4]} 4... dxe4 {[%clk 0:04:55.3]} 5. Ng1 {[%clk 0:04:43.8]}
5... Bc5 {[%clk 0:04:47.1]} 6. d3 {[%clk 0:04:40]} 6... Nf6 {[%clk 0:04:42.1]}
7. Be3 {[%clk 0:04:34.9]} 7... Bxe3 {[%clk 0:04:38.4]} 8. fxe3 {[%clk
0:04:33.7]} 8... Qb6 {[%clk 0:04:37.7]} 9. b3 {[%clk 0:04:27.7]} 9... Qxe3
{[%clk 0:04:36.2]} 10. Nc3 {[%clk 0:04:19]} 10... exd3 {[%clk 0:04:31.6]} 11.
Qxd3 {[%clk 0:04:14.2]} 11... Qxd3 {[%clk 0:04:29.7]} 12. Bxd3 {[%clk
0:04:10.9]} 12... O-O {[%clk 0:04:25.7]} 13. O-O-O {[%clk 0:04:08.8]} 13... Nd5
{[%clk 0:04:22.2]} 14. Nxd5 {[%clk 0:04:05.8]} 14... exd5 {[%clk 0:04:22.1]} 15.
Nf3 {[%clk 0:04:03.1]} 15... Bg4 {[%clk 0:04:21]} 16. h3 {[%clk 0:03:58.2]}
16... Bxf3 {[%clk 0:04:10.9]} 17. gxf3 {[%clk 0:03:55.4]} 17... Nd7 {[%clk
0:04:10.1]} 18. f4 {[%clk 0:03:46.6]} 18... Rae8 {[%clk 0:04:03.5]} 19. Rhg1
{[%clk 0:03:39.5]} 19... Kh8 {[%clk 0:03:59.4]} 20. h4 {[%clk 0:03:34.2]} 20...
Re3 {[%clk 0:03:57.6]} 21. h5 {[%clk 0:03:31]} 21... Nf6 {[%clk 0:03:52.8]} 22.
h6 {[%clk 0:03:23.9]} 22... gxh6 {[%clk 0:03:48.7]} 23. Rg2 {[%clk 0:03:11.2]}
23... Rg8 {[%clk 0:03:40]} 24. Rxg8+ {[%clk 0:03:07.1]} 24... Kxg8 {[%clk
0:03:35.7]} 25. Rg1+ {[%clk 0:03:04.8]} 25... Kf8 {[%clk 0:03:34.1]} 26. Kb2
{[%clk 0:03:03.4]} 26... Rf3 {[%clk 0:03:26.7]} 27. f5 {[%clk 0:02:58.9]} 27...
Ne4 {[%clk 0:03:16]} 28. a4 {[%clk 0:02:45.8]} 28... Rxf5 {[%clk 0:03:13.7]} 29.
Rh1 {[%clk 0:02:36.4]} 29... Rf6 {[%clk 0:03:10.7]} 30. Rh4 {[%clk 0:02:26.1]}
30... Re6 {[%clk 0:03:06.9]} 31. Ka3 {[%clk 0:02:12.5]} 31... a6 {[%clk
0:02:58.7]} 32. c4 {[%clk 0:02:11.1]} 32... f5 {[%clk 0:02:48.4]} 33. cxd5
{[%clk 0:02:02.8]} 33... cxd5 {[%clk 0:02:48.3]} 34. Rf4 {[%clk 0:01:53.7]}
34... Re5 {[%clk 0:02:44.4]} 35. Rh4 {[%clk 0:01:42.3]} 35... Kg7 {[%clk
0:02:43.1]} 36. Bxe4 {[%clk 0:01:34.5]} 36... dxe4 {[%clk 0:02:41.1]} 37. Rh1
{[%clk 0:01:32]} 37... e3 {[%clk 0:02:39.2]} 38. Rg1+ {[%clk 0:01:30.4]} 38...
Kf6 {[%clk 0:02:37.7]} 39. Rg8 {[%clk 0:01:25.5]} 39... e2 {[%clk 0:02:33.4]}
40. Rf8+ {[%clk 0:01:24.1]} 40... Kg7 {[%clk 0:02:31.7]} 41. Rb8 {[%clk
0:01:20.9]} 41... Re7 {[%clk 0:02:29]} 42. Rc8 {[%clk 0:01:12.9]} 42... e1=Q
{[%clk 0:02:26.8]} 43. Rc5 {[%clk 0:01:09.7]} 43... a5 {[%clk 0:02:22.1]} 44.
Rxf5 {[%clk 0:01:04.7]} 44... Qa1# {[%clk 0:02:20.6]} 0-1

[Event "Live Chess"]
[Site "Chess.com"]
[Date "2023.05.21"]
[Round "-"]
[White "stevochess11"]
[Black "Ed_Knox"]
[Result "0-1"]
[WhiteElo "1702"]
[BlackElo "1472"]
[TimeControl "300"]
[EndTime "5:57:28 PDT"]
[Termination "Ed_Knox won by checkmate"]

1. d4 {[%clk 0:04:56.6]} 1... g6 {[%clk 0:04:58.8]} 2. Nf3 {[%clk 0:04:54.4]}
2... Bg7 {[%clk 0:04:58]} 3. Nc3 {[%clk 0:04:53.4]} 3... d6 {[%clk 0:04:57.3]}
4. e4 {[%clk 0:04:50.8]} 4... a6 {[%clk 0:04:56.7]} 5. Be3 {[%clk 0:04:49.8]}
5... b5 {[%clk 0:04:56.1]} 6. Bd3 {[%clk 0:04:48.5]} 6... Bb7 {[%clk 0:04:55]}
7. Ne2 {[%clk 0:04:47.1]} 7... Nd7 {[%clk 0:04:54]} 8. Qd2 {[%clk 0:04:45.9]}
8... c5 {[%clk 0:04:49.9]} 9. c3 {[%clk 0:04:44.9]} 9... c4 {[%clk 0:04:48.3]}
10. Bc2 {[%clk 0:04:44]} 10... Ngf6 {[%clk 0:04:42.5]} 11. Ng3 {[%clk 0:04:43]}
11... O-O {[%clk 0:04:37.2]} 12. O-O {[%clk 0:04:40.2]} 12... Qc7 {[%clk
0:04:04.5]} 13. Bh6 {[%clk 0:04:37.8]} 13... Qc6 {[%clk 0:03:51.6]} 14. Nf5
{[%clk 0:04:34.1]} 14... gxf5 {[%clk 0:03:10.6]} 15. Qg5 {[%clk 0:04:20.1]}
15... Ne8 {[%clk 0:02:57.5]} 16. Nh4 {[%clk 0:03:50.4]} 16... f6 {[%clk
0:02:30.5]} 17. Qg3 {[%clk 0:03:47.1]} 17... Rf7 {[%clk 0:01:48.6]} 18. f3
{[%clk 0:03:47]} 18... Kh8 {[%clk 0:01:36.5]} 19. Nxf5 {[%clk 0:03:46.9]} 19...
Bxh6 {[%clk 0:01:31.4]} 20. Nh4 {[%clk 0:03:46.8]} 20... Rg7 {[%clk 0:01:26.1]}
21. e5 {[%clk 0:03:46.7]} 21... Rxg3 {[%clk 0:01:16.2]} 22. hxg3 {[%clk
0:03:45.7]} 22... dxe5 {[%clk 0:01:10]} 23. Be4 {[%clk 0:03:42.8]} 23... Qc7
{[%clk 0:01:01.9]} 24. Nf5 {[%clk 0:03:41]} 24... Bf8 {[%clk 0:00:56.2]} 25.
Rad1 {[%clk 0:03:35.4]} 25... Bxe4 {[%clk 0:00:54.9]} 26. fxe4 {[%clk
0:03:34.3]} 26... Ng7 {[%clk 0:00:53.8]} 27. dxe5 {[%clk 0:03:30.3]} 27... Nxe5
{[%clk 0:00:52.4]} 28. Nd4 {[%clk 0:03:23.7]} 28... Nd3 {[%clk 0:00:51.2]} 29.
Rd2 {[%clk 0:03:12.5]} 29... Qxg3 {[%clk 0:00:48.2]} 30. Ne2 {[%clk 0:03:07.9]}
30... Qd6 {[%clk 0:00:44.2]} 31. Nd4 {[%clk 0:03:04.7]} 31... e5 {[%clk
0:00:42]} 32. Nf3 {[%clk 0:03:02.1]} 32... Qc5+ {[%clk 0:00:39.7]} 33. Kh1
{[%clk 0:03:00.7]} 33... Be7 {[%clk 0:00:33.7]} 34. Nh2 {[%clk 0:02:55.3]} 34...
Nh5 {[%clk 0:00:32.3]} 35. Rf3 {[%clk 0:02:49.7]} 35... Rg8 {[%clk 0:00:30.4]}
36. Rh3 {[%clk 0:02:47.3]} 36... Ng3+ {[%clk 0:00:28.2]} 37. Rxg3 {[%clk
0:02:45.1]} 37... Rxg3 {[%clk 0:00:27.4]} 38. Nf3 {[%clk 0:02:44.9]} 38... Nf4
{[%clk 0:00:22.7]} 39. Rd7 {[%clk 0:02:42.8]} 39... Rxg2 {[%clk 0:00:19.9]} 40.
Rxe7 {[%clk 0:02:36.5]} 40... Qf2 {[%clk 0:00:17.8]} 41. Re8+ {[%clk 0:02:35]}
41... Kg7 {[%clk 0:00:16.7]} 42. Re7+ {[%clk 0:02:33.7]} 42... Kh6 {[%clk
0:00:15.9]} 43. Rxh7+ {[%clk 0:02:26.6]} 43... Kxh7 {[%clk 0:00:14.7]} 44. Ng5+
{[%clk 0:02:23.6]} 44... Kg6 {[%clk 0:00:13.3]} 45. Nh3 {[%clk 0:02:21.2]} 45...
Qf1+ {[%clk 0:00:12]} 46. Ng1 {[%clk 0:02:20.1]} 46... Qxg1# {[%clk 0:00:11.2]}
0-1

[Event "Live Chess"]
[Site "Chess.com"]
[Date "2023.05.21"]
[Round "-"]
[White "jumush"]
[Black "bedsdrout"]
[Result "0-1"]
[WhiteElo "1729"]
[BlackElo "1006"]
[TimeControl "300"]
[EndTime "5:57:30 PDT"]
[Termination "bedsdrout won by checkmate"]

1. e4 {[%clk 0:04:52.2]} 1... e5 {[%clk 0:04:55.3]} 2. Nc3 {[%clk 0:04:46.6]}
2... Qh4 {[%clk 0:04:47.7]} 3. Nf3 {[%clk 0:04:41.8]} 3... Qf6 {[%clk
0:04:43.8]} 4. Bc4 {[%clk 0:04:38.8]} 4... Bc5 {[%clk 0:04:20.6]} 5. d3 {[%clk
0:04:35.4]} 5... Ne7 {[%clk 0:04:17.2]} 6. Qe2 {[%clk 0:04:32.5]} 6... d6 {[%clk
0:04:14.8]} 7. Bg5 {[%clk 0:04:30.3]} 7... Qg6 {[%clk 0:04:12.7]} 8. g3 {[%clk
0:04:18.3]} 8... Qh5 {[%clk 0:04:07.7]} 9. Bxe7 {[%clk 0:03:50.4]} 9... Bg4
{[%clk 0:04:03.6]} 10. Bg5 {[%clk 0:03:33.3]} 10... Bxf3 {[%clk 0:03:44.9]} 11.
Qd2 {[%clk 0:03:30.5]} 11... Bxh1 {[%clk 0:03:42.8]} 12. Be3 {[%clk 0:03:28.7]}
12... Qxh2 {[%clk 0:03:40.8]} 13. Bxc5 {[%clk 0:03:25.3]} 13... Qg1+ {[%clk
0:03:37.9]} 14. Ke2 {[%clk 0:03:23.5]} 14... Qxa1 {[%clk 0:03:35.3]} 15. Be3
{[%clk 0:03:20.3]} 15... c6 {[%clk 0:03:33.7]} 16. d4 {[%clk 0:03:17.5]} 16...
Bg2 {[%clk 0:03:31.4]} 17. dxe5 {[%clk 0:03:15.4]} 17... Qf1# {[%clk 0:03:28.1]}
0-1

[Event "Live Chess"]
[Site "Chess.com"]
[Date "2023.05.21"]
[Round "-"]
[White "Ayursworld"]
[Black "f4nomore"]
[Result "1-0"]
[WhiteElo "1384"]
[BlackElo "1379"]
[TimeControl "300"]
[EndTime "5:57:32 PDT"]
[Termination "Ayursworld won by resignation"]

1. e4 {[%clk 0:04:58.3]} 1... d6 {[%clk 0:04:59]} 2. Nf3 {[%clk 0:04:56.9]} 2...
g6 {[%clk 0:04:55.6]} 3. d4 {[%clk 0:04:55.5]} 3... Bg7 {[%clk 0:04:54.1]} 4.
Bc4 {[%clk 0:04:53.1]} 4... e6 {[%clk 0:04:52.3]} 5. Nc3 {[%clk 0:04:51.3]} 5...
Bd7 {[%clk 0:04:51.2]} 6. Be3 {[%clk 0:04:44.7]} 6... Ne7 {[%clk 0:04:50]} 7.
O-O {[%clk 0:04:41.6]} 7... O-O {[%clk 0:04:48.7]} 8. Qd2 {[%clk 0:04:36.8]}
8... c6 {[%clk 0:04:47.6]} 9. Bh6 {[%clk 0:04:34.8]} 9... d5 {[%clk 0:04:46.5]}
10. exd5 {[%clk 0:04:32.6]} 10... cxd5 {[%clk 0:04:44.9]} 11. Bd3 {[%clk
0:04:25.7]} 11... Nbc6 {[%clk 0:04:40.8]} 12. a3 {[%clk 0:04:22.4]} 12... Nf5
{[%clk 0:04:37]} 13. Bxf5 {[%clk 0:04:19.2]} 13... exf5 {[%clk 0:04:34.9]} 14.
Nxd5 {[%clk 0:04:07.8]} 14... Be6 {[%clk 0:04:27]} 15. Bxg7 {[%clk 0:03:53.7]}
15... Kxg7 {[%clk 0:04:22.9]} 16. Nc3 {[%clk 0:03:45.2]} 16... Qd7 {[%clk
0:04:19.2]} 17. d5 {[%clk 0:03:42.8]} 17... Rad8 {[%clk 0:03:56.2]} 18. dxc6
{[%clk 0:03:35.5]} 18... Qxc6 {[%clk 0:03:53.8]} 19. Qg5 {[%clk 0:03:19.3]}
19... h6 {[%clk 0:03:49]} 20. Qf4 {[%clk 0:03:16]} 20... g5 {[%clk 0:03:45.8]}
21. Qe5+ {[%clk 0:03:00]} 21... f6 {[%clk 0:03:44.3]} 22. Qe3 {[%clk 0:02:49.7]}
22... Rde8 {[%clk 0:03:39.9]} 23. Qc1 {[%clk 0:02:43.9]} 23... Bc4 {[%clk
0:03:36.1]} 24. Re1 {[%clk 0:02:40.4]} 24... g4 {[%clk 0:03:24.8]} 25. Rxe8
{[%clk 0:02:30.5]} 25... Rxe8 {[%clk 0:03:22.8]} 26. Nd4 {[%clk 0:02:27.7]}
26... Qb6 {[%clk 0:03:01.5]} 27. Nxf5+ {[%clk 0:02:23]} 27... Kf7 {[%clk
0:02:40.5]} 28. Nxh6+ {[%clk 0:02:19.3]} 28... Kg6 {[%clk 0:02:36.1]} 29. Nxg4
{[%clk 0:02:13.1]} 29... Rd8 {[%clk 0:02:25.8]} 30. Qh6+ {[%clk 0:02:05.7]}
30... Kf5 {[%clk 0:02:24.2]} 31. Qh5+ {[%clk 0:01:56.2]} 31... Ke6 {[%clk
0:02:18.2]} 32. Re1+ {[%clk 0:01:48.6]} 32... Kd6 {[%clk 0:02:12.1]} 33. Rd1+
{[%clk 0:01:42.4]} 33... Kc7 {[%clk 0:02:10.1]} 34. Qh7+ {[%clk 0:01:29.9]}
34... Kc8 {[%clk 0:02:08.2]} 35. Qf5+ {[%clk 0:01:21.3]} 35... Be6 {[%clk
0:02:03.2]} 36. Rxd8+ {[%clk 0:01:20.2]} 36... Kxd8 {[%clk 0:02:00.4]} 37. Qxf6+
{[%clk 0:01:18.8]} 37... Kd7 {[%clk 0:01:55.6]} 38. Ne5+ {[%clk 0:01:13.4]}
38... Kd6 {[%clk 0:01:51.9]} 39. Nc4+ {[%clk 0:01:09.6]} 1-0

[Event "Live Chess"]
[Site "Chess.com"]
[Date "2023.05.21"]
[Round "-"]
[White "mattihelenius2"]
[Black "SupremeTactician"]
[Result "0-1"]
[WhiteElo "491"]
[BlackElo "2241"]
[TimeControl "300"]
[EndTime "5:58:07 PDT"]
[Termination "SupremeTactician won by checkmate"]

1. d4 {[%clk 0:04:58.1]} 1... Nf6 {[%clk 0:04:57.8]} 2. Nf3 {[%clk 0:04:57.5]}
2... e6 {[%clk 0:04:53.9]} 3. Bf4 {[%clk 0:04:55.6]} 3... b6 {[%clk 0:04:52.6]}
4. Nbd2 {[%clk 0:04:54.5]} 4... Bb7 {[%clk 0:04:51.4]} 5. e3 {[%clk 0:04:53.6]}
5... Be7 {[%clk 0:04:48.3]} 6. Bc4 {[%clk 0:04:50.3]} 6... Nc6 {[%clk
0:04:44.3]} 7. c3 {[%clk 0:04:48.9]} 7... O-O {[%clk 0:04:38.9]} 8. Qe2 {[%clk
0:04:46.2]} 8... d5 {[%clk 0:04:37.6]} 9. Bb5 {[%clk 0:04:44.1]} 9... a6 {[%clk
0:04:35.3]} 10. Bxc6 {[%clk 0:04:42.7]} 10... Bxc6 {[%clk 0:04:35.2]} 11. Ne5
{[%clk 0:04:36.2]} 11... Be8 {[%clk 0:04:33.1]} 12. O-O {[%clk 0:04:26.4]} 12...
Bd6 {[%clk 0:04:26.1]} 13. Rae1 {[%clk 0:04:19.4]} 13... Nd7 {[%clk 0:04:24]}
14. b4 {[%clk 0:04:17.7]} 14... Bxe5 {[%clk 0:04:17.5]} 15. dxe5 {[%clk
0:04:15.7]} 15... f6 {[%clk 0:04:15.8]} 16. Bg3 {[%clk 0:03:58.5]} 16... fxe5
{[%clk 0:04:11]} 17. Nf3 {[%clk 0:03:56.6]} 17... Qf6 {[%clk 0:04:07.2]} 18. Bh4
{[%clk 0:03:46.2]} 18... Qg6 {[%clk 0:04:04.9]} 19. g3 {[%clk 0:03:44.3]} 19...
Qg4 {[%clk 0:03:59.9]} 20. Kg2 {[%clk 0:03:34.2]} 20... Bh5 {[%clk 0:03:45]} 21.
h3 {[%clk 0:03:25.7]} 21... Qxf3+ {[%clk 0:03:42.7]} 22. Qxf3 {[%clk 0:03:09.6]}
22... Bxf3+ {[%clk 0:03:42.6]} 23. Kg1 {[%clk 0:03:06.3]} 23... h6 {[%clk
0:03:42.5]} 24. g4 {[%clk 0:03:04.4]} 24... g5 {[%clk 0:03:39.3]} 25. Bg3 {[%clk
0:03:02.9]} 25... e4 {[%clk 0:03:39.2]} 26. Bxc7 {[%clk 0:02:58.8]} 26... Rac8
{[%clk 0:03:38]} 27. Bxb6 {[%clk 0:02:57.4]} 27... Nxb6 {[%clk 0:03:36]} 28. a3
{[%clk 0:02:46.8]} 28... Rxc3 {[%clk 0:03:33.3]} 29. Rc1 {[%clk 0:02:44.8]}
29... Rfc8 {[%clk 0:03:30.3]} 30. Rce1 {[%clk 0:02:37]} 30... Rc2 {[%clk
0:03:27.8]} 31. Kh2 {[%clk 0:02:25.1]} 31... Rd2 {[%clk 0:03:24.8]} 32. Kg3
{[%clk 0:02:23.1]} 32... Rcc2 {[%clk 0:03:19.5]} 33. a4 {[%clk 0:02:16.8]} 33...
Nxa4 {[%clk 0:03:16.6]} 34. Ra1 {[%clk 0:02:12.5]} 34... Ra2 {[%clk 0:03:12]}
35. h4 {[%clk 0:01:56.4]} 35... Rxa1 {[%clk 0:03:09.6]} 36. Rxa1 {[%clk
0:01:54.7]} 36... Nc3 {[%clk 0:03:08.3]} 37. Rxa6 {[%clk 0:01:52.5]} 37... Ne2+
{[%clk 0:03:07.1]} 38. Kh3 {[%clk 0:01:44.3]} 38... Rd1 {[%clk 0:03:07]} 39. Ra2
{[%clk 0:01:39.6]} 39... Rh1# {[%clk 0:03:05.1]} 0-1

[Event "Live Chess"]
[Site "Chess.com"]
[Date "2023.05.21"]
[Round "-"]
[White "TheSmoulderingMaster"]
[Black "lateforthesky"]
[Result "0-1"]
[WhiteElo "1640"]
[BlackElo "2133"]
[TimeControl "300"]
[EndTime "5:58:11 PDT"]
[Termination "lateforthesky won by resignation"]

1. e4 {[%clk 0:04:58.6]} 1... c5 {[%clk 0:04:56.2]} 2. Nf3 {[%clk 0:04:57.2]}
2... Nf6 {[%clk 0:04:53]} 3. e5 {[%clk 0:04:54.6]} 3... Nd5 {[%clk 0:04:49.1]}
4. d4 {[%clk 0:04:52.3]} 4... cxd4 {[%clk 0:04:46.4]} 5. Qxd4 {[%clk 0:04:49.4]}
5... e6 {[%clk 0:04:44.7]} 6. Nc3 {[%clk 0:04:47.5]} 6... Nc6 {[%clk 0:04:36.7]}
7. Qe4 {[%clk 0:04:36.7]} 7... Nxc3 {[%clk 0:04:29.3]} 8. bxc3 {[%clk
0:04:35.5]} 8... Be7 {[%clk 0:04:26.3]} 9. Bb5 {[%clk 0:04:32.6]} 9... Qa5
{[%clk 0:04:20.2]} 10. O-O {[%clk 0:04:29.2]} 10... Qxb5 {[%clk 0:04:18.1]} 11.
Qg4 {[%clk 0:04:26.4]} 11... g6 {[%clk 0:03:43]} 12. Bh6 {[%clk 0:04:22.5]}
12... Nxe5 {[%clk 0:03:35]} 13. Qd4 {[%clk 0:04:16.8]} 13... Nxf3+ {[%clk
0:03:27.4]} 14. gxf3 {[%clk 0:04:15.3]} 14... Rg8 {[%clk 0:03:18]} 15. Rad1
{[%clk 0:04:10]} 15... Qh5 {[%clk 0:03:15]} 16. Bf4 {[%clk 0:04:02.5]} 16... d5
{[%clk 0:02:40.9]} 17. Rb1 {[%clk 0:03:56.3]} 17... b6 {[%clk 0:02:31.5]} 18.
Qa4+ {[%clk 0:03:53.1]} 18... Bd7 {[%clk 0:02:30.5]} 19. Qa6 {[%clk 0:03:51]}
19... Qxf3 {[%clk 0:02:13.4]} 20. Bg3 {[%clk 0:03:46.7]} 20... d4 {[%clk
0:02:09]} 21. cxd4 {[%clk 0:03:43.6]} 21... Bc6 {[%clk 0:02:07]} 0-1

[Event "Live Chess"]
[Site "Chess.com"]
[Date "2023.05.21"]
[Round "-"]
[White "onemoretime1975"]
[Black "diana21strabt"]
[Result "1-0"]
[WhiteElo "1879"]
[BlackElo "1746"]
[TimeControl "300"]
[EndTime "5:58:24 PDT"]
[Termination "onemoretime1975 won by checkmate"]

1. e4 {[%clk 0:04:57.1]} 1... d5 {[%clk 0:04:58.9]} 2. exd5 {[%clk 0:04:55.1]}
2... Qxd5 {[%clk 0:04:58.1]} 3. Nf3 {[%clk 0:04:53.7]} 3... Nf6 {[%clk
0:04:56.9]} 4. d4 {[%clk 0:04:52.4]} 4... Bg4 {[%clk 0:04:51.4]} 5. Be2 {[%clk
0:04:51]} 5... Nc6 {[%clk 0:04:49.7]} 6. c3 {[%clk 0:04:49.8]} 6... O-O-O {[%clk
0:04:48.1]} 7. h3 {[%clk 0:04:48.8]} 7... Bh5 {[%clk 0:04:45.2]} 8. Be3 {[%clk
0:04:43.9]} 8... e5 {[%clk 0:04:41.9]} 9. Nxe5 {[%clk 0:04:39.9]} 9... Bxe2
{[%clk 0:04:36.7]} 10. Qxe2 {[%clk 0:04:36]} 10... Nxe5 {[%clk 0:04:35.1]} 11.
dxe5 {[%clk 0:04:32.9]} 11... Qxe5 {[%clk 0:04:33.9]} 12. O-O {[%clk 0:04:31.3]}
12... Bc5 {[%clk 0:04:30.1]} 13. Re1 {[%clk 0:04:25]} 13... Bxe3 {[%clk
0:04:28.7]} 14. Qxe3 {[%clk 0:04:21.3]} 14... Qxe3 {[%clk 0:04:27.4]} 15. fxe3
{[%clk 0:04:20.2]} 15... Rhe8 {[%clk 0:04:25.5]} 16. Na3 {[%clk 0:03:53.2]}
16... a6 {[%clk 0:04:21.8]} 17. Kf2 {[%clk 0:03:35.7]} 17... Rd2+ {[%clk
0:04:18.6]} 18. Re2 {[%clk 0:03:34.7]} 18... Rxe2+ {[%clk 0:04:16.9]} 19. Kxe2
{[%clk 0:03:33.3]} 19... Nd5 {[%clk 0:04:16.2]} 20. Nc2 {[%clk 0:03:30.1]} 20...
f5 {[%clk 0:04:14.9]} 21. Rd1 {[%clk 0:03:24.4]} 21... Nxe3 {[%clk 0:04:10.4]}
22. Nxe3 {[%clk 0:03:22.2]} 22... f4 {[%clk 0:04:09.6]} 23. Rd3 {[%clk
0:03:21.1]} 23... fxe3 {[%clk 0:04:08.3]} 24. Rxe3 {[%clk 0:03:20.1]} 24...
Rxe3+ {[%clk 0:04:05.6]} 25. Kxe3 {[%clk 0:03:18.6]} 25... Kd7 {[%clk
0:04:05.1]} 26. Ke4 {[%clk 0:03:15.2]} 26... Ke6 {[%clk 0:04:04]} 27. h4 {[%clk
0:03:12]} 27... h5 {[%clk 0:04:00.7]} 28. g3 {[%clk 0:03:09.6]} 28... g6 {[%clk
0:03:59.1]} 29. Kf4 {[%clk 0:03:08.1]} 29... Kf6 {[%clk 0:03:57.5]} 30. Ke4
{[%clk 0:03:02.2]} 30... c6 {[%clk 0:03:52.5]} 31. a4 {[%clk 0:02:52.6]} 31...
b6 {[%clk 0:03:51]} 32. b3 {[%clk 0:02:44.8]} 32... g5 {[%clk 0:03:48.6]} 33. b4
{[%clk 0:02:22.9]} 33... gxh4 {[%clk 0:03:33.8]} 34. gxh4 {[%clk 0:02:20.9]}
34... Ke6 {[%clk 0:03:29.4]} 35. c4 {[%clk 0:02:13.8]} 35... b5 {[%clk 0:03:17]}
36. axb5 {[%clk 0:02:03.4]} 36... axb5 {[%clk 0:03:10.7]} 37. c5 {[%clk
0:01:59.7]} 37... Kf6 {[%clk 0:03:08.1]} 38. Kf4 {[%clk 0:01:58.4]} 38... Ke6
{[%clk 0:03:06.9]} 39. Kg5 {[%clk 0:01:57]} 39... Kd5 {[%clk 0:03:02.3]} 40.
Kxh5 {[%clk 0:01:53.9]} 40... Kc4 {[%clk 0:03:01.4]} 41. Kg4 {[%clk 0:01:51]}
41... Kxb4 {[%clk 0:02:59.9]} 42. h5 {[%clk 0:01:50.6]} 42... Kxc5 {[%clk
0:02:59.1]} 43. h6 {[%clk 0:01:49.9]} 43... b4 {[%clk 0:02:58.5]} 44. h7 {[%clk
0:01:49.4]} 44... b3 {[%clk 0:02:57.9]} 45. h8=Q {[%clk 0:01:48.3]} 45... Kb4
{[%clk 0:02:57.2]} 46. Qb2 {[%clk 0:01:40.8]} 46... c5 {[%clk 0:02:55.8]} 47.
Kf3 {[%clk 0:01:38.5]} 47... c4 {[%clk 0:02:55]} 48. Ke3 {[%clk 0:01:37]} 48...
c3 {[%clk 0:02:53.5]} 49. Qb1 {[%clk 0:01:35.5]} 49... Ka3 {[%clk 0:02:49.5]}
50. Qa1+ {[%clk 0:01:32.4]} 50... Kb4 {[%clk 0:02:48.4]} 51. Kd3 {[%clk
0:01:31.2]} 51... b2 {[%clk 0:02:46.7]} 52. Qa2 {[%clk 0:01:25.7]} 52... Kb5
{[%clk 0:02:40.3]} 53. Kxc3 {[%clk 0:01:23.6]} 53... b1=N+ {[%clk 0:02:37.9]}
54. Qxb1+ {[%clk 0:01:22.4]} 54... Ka4 {[%clk 0:02:37.2]} 55. Qb4# {[%clk
0:01:18.7]} 1-0

[Event "Live Chess"]
[Site "Chess.com"]
[Date "2023.05.21"]
[Round "-"]
[White "manthanit"]
[Black "zdanevych"]
[Result "0-1"]
[WhiteElo "1085"]
[BlackElo "1511"]
[TimeControl "300"]
[EndTime "5:58:27 PDT"]
[Termination "zdanevych won by resignation"]

1. e4 {[%clk 0:04:58]} 1... d5 {[%clk 0:04:59.1]} 2. exd5 {[%clk 0:04:56.6]}
2... c6 {[%clk 0:04:58.6]} 3. Nc3 {[%clk 0:04:56.3]} 3... cxd5 {[%clk
0:04:57.4]} 4. d4 {[%clk 0:04:54.6]} 4... Nc6 {[%clk 0:04:55.7]} 5. Nf3 {[%clk
0:04:53.9]} 5... Nf6 {[%clk 0:04:47.2]} 6. h3 {[%clk 0:04:53.1]} 6... a6 {[%clk
0:04:46.2]} 7. Ng1 {[%clk 0:04:52]} 7... Bf5 {[%clk 0:04:44.5]} 8. Bd3 {[%clk
0:04:50.9]} 8... Bxd3 {[%clk 0:04:38]} 9. Qxd3 {[%clk 0:04:49.9]} 9... e6 {[%clk
0:04:37.2]} 10. Nge2 {[%clk 0:04:48]} 10... h6 {[%clk 0:04:35]} 11. O-O {[%clk
0:04:46.9]} 11... Bd6 {[%clk 0:04:33.1]} 12. Bf4 {[%clk 0:04:43.4]} 12... Be7
{[%clk 0:04:27.1]} 13. a3 {[%clk 0:04:39.9]} 13... O-O {[%clk 0:04:25.4]} 14.
Rac1 {[%clk 0:04:31.6]} 14... Qb6 {[%clk 0:04:23.2]} 15. Rb1 {[%clk 0:04:25.7]}
15... Na5 {[%clk 0:04:12.2]} 16. Na4 {[%clk 0:04:01.3]} 16... Qc6 {[%clk
0:04:02.7]} 17. Bd2 {[%clk 0:03:37.8]} 17... Qxa4 {[%clk 0:03:58.7]} 18. b4
{[%clk 0:03:14.7]} 18... Nc4 {[%clk 0:03:52.8]} 19. Bf4 {[%clk 0:03:06]} 19...
Qxa3 {[%clk 0:03:48.9]} 20. Qxa3 {[%clk 0:03:00.7]} 20... Nxa3 {[%clk
0:03:47.6]} 21. c3 {[%clk 0:02:55.9]} 21... Nxb1 {[%clk 0:03:45.9]} 22. Rxb1
{[%clk 0:02:54.2]} 0-1